bitfinex/quotes_BTCUSD_20250508
["timestamp","ask_amount","ask_price","bid_price","bid_amount"]
[1746669517147,0.01021565,97889.0,97886.0,0.06385174]
[1746669517378,0.01021565,97889.0,97886.0,0.04805174]
[1746669519397,0.01021565,97889.0,97885.0,0.0582678]
[1746669519600,0.01021565,97889.0,97886.0,0.002]
[1746669520225,0.01021565,97889.0,97886.0,0.001]
[1746669522231,0.01021565,97889.0,97886.0,0.002]
[1746669523040,0.21453034,97889.0,97886.0,0.002]
[1746669523584,0.01021544,97891.0,97888.0,0.01021575]
[1746669524183,0.21656133,97895.0,97890.0,0.23550919]
[1746669524380,0.01021513,97894.0,97889.0,0.21452869]
[1746669524598,0.01021533,97892.0,97889.0,0.24662869]
[1746669528932,0.01021533,97892.0,97889.0,0.23032869]
[1746669529207,0.01021533,97892.0,97889.0,0.21452869]
[1746669530719,0.01021513,97894.0,97890.0,0.01021554]
[1746669531130,0.01021523,97893.0,97889.0,0.21452869]
[1746669531341,0.01021523,97893.0,97889.0,0.23112869]
[1746669532087,0.01021523,97893.0,97889.0,0.21452869]
[1746669532315,0.001,97894.0,97891.0,0.21452431]
[1746669532513,0.001,97894.0,97893.0,0.2371047]
[1746669532745,0.001,97894.0,97891.0,0.21452431]
[1746669532946,0.01021513,97894.0,97889.0,0.21452826]
[1746669533177,0.01021513,97894.0,97891.0,0.20430887]
[1746669533902,0.00204483,97895.0,97893.0,0.20430429]
[1746669534183,0.00204483,97895.0,97892.0,0.21452047]
[1746669534767,0.001,97894.0,97892.0,0.21452047]
[1746669534963,0.00204483,97895.0,97894.0,0.20430261]
[1746669535353,0.00304483,97895.0,97894.0,0.20430261]
[1746669535671,0.00204483,97895.0,97894.0,0.20430261]
[1746669535875,0.00304483,97895.0,97894.0,0.20430261]
[1746669536592,0.00404483,97895.0,97894.0,0.20430261]
[1746669537241,0.00304483,97895.0,97894.0,0.20430261]
[1746669537680,0.00404483,97895.0,97894.0,0.20430261]
[1746669539968,0.10583895,97895.0,97893.0,0.04805174]
[1746669540160,0.33719673,97894.0,97893.0,0.04805174]
[1746669540437,0.0327,97887.0,97886.0,0.34]
[1746669541842,0.0327,97887.0,97886.0,0.341]
[1746669541984,0.0327,97887.0,97886.0,0.342]
[1746669543120,0.10179412,97894.0,97886.0,0.35221596]
[1746669543323,0.10179412,97894.0,97888.0,0.01021575]
[1746669543532,0.00204483,97895.0,97893.0,0.2043047]
[1746669544280,0.001,97894.0,97893.0,0.2043047]
[1746669544471,0.002,97894.0,97893.0,0.2043047]
[1746669544709,0.00204483,97895.0,97893.0,0.2043047]
[1746669545052,0.00304483,97895.0,97893.0,0.2043047]
[1746669545287,0.00404483,97895.0,97893.0,0.2043047]
[1746669545582,0.00304483,97895.0,97893.0,0.2043047]
[1746669545795,0.001,97894.0,97893.0,0.2354047]
[1746669545991,0.00304483,97895.0,97893.0,0.2354047]
[1746669546426,0.00204483,97895.0,97893.0,0.2354047]
[1746669546595,0.00204483,97895.0,97893.0,0.2043047]
[1746669546820,0.001,97894.0,97893.0,0.2043047]
[1746669547163,0.00204483,97895.0,97893.0,0.2043047]
[1746669547363,0.00304483,97895.0,97893.0,0.2043047]
[1746669547595,0.00204483,97895.0,97893.0,0.2376047]
[1746669547996,0.00204483,97895.0,97893.0,0.2225047]
[1746669548197,0.00204483,97895.0,97893.0,0.2215047]
[1746669548679,0.00204483,97895.0,97893.0,0.2225047]
[1746669550126,0.00204483,97895.0,97893.0,0.2063047]
[1746669550999,0.00204483,97895.0,97893.0,0.2222047]
[1746669552602,0.00204483,97895.0,97893.0,0.26857304]
[1746669553063,0.00204483,97895.0,97894.0,0.371]
[1746669553951,0.00204483,97895.0,97894.0,0.38554085]
[1746669555021,0.00204483,97895.0,97894.0,0.38654085]
[1746669555403,0.00204483,97895.0,97894.0,0.38554085]
[1746669555576,0.00204483,97895.0,97894.0,0.38754085]
[1746669555777,0.00204483,97895.0,97894.0,0.38854085]
[1746669556189,0.00204483,97895.0,97894.0,0.44983194]
[1746669556387,0.00204483,97895.0,97894.0,0.86713194]
[1746669556592,0.00204483,97895.0,97894.0,0.86913194]
[1746669557451,0.00204483,97895.0,97894.0,1.36913194]
[1746669558369,0.00204483,97895.0,97894.0,1.36713194]
[1746669558571,0.00204483,97895.0,97894.0,1.46892606]
[1746669558915,0.016,97926.0,97925.0,0.20423793]
[1746669559430,4.492e-05,97928.0,97927.0,0.20423376]
[1746669559672,4.492e-05,97928.0,97927.0,0.54423376]
[1746669560267,4.492e-05,97928.0,97927.0,0.57397461]
[1746669560474,4.492e-05,97928.0,97927.0,0.58897461]
[1746669560741,4.492e-05,97928.0,97927.0,0.55175963]
[1746669560963,4.492e-05,97928.0,97927.0,0.56345963]
[1746669561880,0.00104492,97928.0,97927.0,0.56345963]
[1746669562121,0.01020981,97945.0,97941.0,0.20420302]
[1746669562740,0.0319,97944.0,97941.0,0.20420302]
[1746669563039,0.2144059,97946.0,97941.0,0.20420302]
[1746669563247,0.01420981,97945.0,97941.0,0.20420302]
[1746669563439,0.0319,97944.0,97941.0,0.20420302]
[1746669563664,0.01020981,97945.0,97941.0,0.20420302]
[1746669563860,0.0319,97942.0,97941.0,0.20420302]
[1746669564581,0.0319449,97942.0,97941.0,0.20420302]
[1746669565418,4.49e-05,97942.0,97941.0,0.20420302]
[1746669566072,0.0040449,97942.0,97941.0,0.20420302]
[1746669566367,0.0070449,97942.0,97941.0,0.20420302]
[1746669570985,0.0235449,97942.0,97941.0,0.20420302]
[1746669571739,0.0070449,97942.0,97941.0,0.20420302]
[1746669579182,0.0384449,97942.0,97941.0,0.20420302]
[1746669579383,0.0384449,97942.0,97939.0,0.20420828]
[1746669579618,0.0384449,97942.0,97940.0,0.20420482]
[1746669580509,0.0040449,97942.0,97940.0,0.20420482]
[1746669580685,0.0030449,97942.0,97940.0,0.20420482]
[1746669580887,0.0060449,97942.0,97940.0,0.20420482]
[1746669581100,0.0030449,97942.0,97940.0,0.20420482]
[1746669581301,4.49e-05,97942.0,97940.0,0.20420482]
[1746669581550,0.0030449,97942.0,97940.0,0.20420482]
[1746669582138,0.0060449,97942.0,97940.0,0.20420482]
[1746669584683,0.0164,97941.0,97940.0,0.20420482]
[1746669585051,0.0316,97941.0,97940.0,0.20420482]
[1746669586634,0.0164,97941.0,97939.0,0.20420828]
[1746669586837,0.20421916,97934.0,97933.0,0.04802301]
[1746669587152,0.33661328,97934.0,97933.0,0.04802301]
[1746669587851,0.33761328,97934.0,97933.0,0.04802301]
[1746669588215,0.01021189,97925.0,97922.0,0.20424249]
[1746669588413,0.0317,97923.0,97922.0,0.20424249]
[1746669590177,0.0317,97923.0,97922.0,0.2160748]
[1746669590590,0.0317,97923.0,97922.0,0.2170748]
[1746669590880,0.0317,97923.0,97922.0,0.2180748]
[1746669592259,0.0163,97923.0,97922.0,0.2180748]
[1746669592479,0.0161,97929.0,97922.0,0.01383231]
[1746669592669,0.0313,97928.0,97927.0,0.20423348]
[1746669592875,0.0313,97928.0,97924.0,0.20424002]
[1746669593084,0.0313,97927.0,97924.0,0.20424002]
[1746669593288,0.0308,97926.0,97924.0,0.20424002]
[1746669593521,0.0154,97925.0,97924.0,0.20424002]
[1746669594702,0.0154,97925.0,97924.0,0.20524002]
[1746669595125,0.0154,97925.0,97924.0,0.20624002]
[1746669595352,0.33763205,97925.0,97924.0,0.002]
[1746669595998,0.34479385,97925.0,97924.0,0.002]
[1746669596596,0.34479385,97925.0,97924.0,0.001]
[1746669596980,0.23586088,97914.0,97913.0,0.04802693]
[1746669597187,0.337655,97914.0,97913.0,0.04802693]
[1746669597942,0.01021335,97911.0,97908.0,0.01165292]
[1746669598142,0.11200747,97911.0,97907.0,0.2042746]
[1746669598326,0.0316,97909.0,97907.0,0.2042746]
[1746669598532,0.11200747,97911.0,97907.0,0.2042746]
[1746669598733,0.01021346,97910.0,97907.0,0.2042746]
[1746669599049,0.0316,97910.0,97909.0,0.20426991]
[1746669599216,0.002,97914.0,97913.0,0.20426296]
[1746669599628,0.001,97914.0,97913.0,0.20426296]
[1746669600472,0.01021262,97918.0,97913.0,0.20426296]
[1746669600669,0.016,97921.0,97913.0,0.20426296]
[1746669600670,0.016,97921.0,97920.0,0.20424836]
[1746669600883,0.0154,97936.0,97935.0,0.20421708]
[1746669601093,0.02521074,97936.0,97933.0,0.20422117]
[1746669601298,0.01021064,97937.0,97933.0,0.20422117]
[1746669601502,0.01021074,97936.0,97933.0,0.20422117]
[1746669601939,0.01021095,97934.0,97930.0,0.22040792]
[1746669602136,0.01021033,97940.0,97930.0,0.22040792]
[1746669602137,0.20419255,97947.0,97930.0,0.22040792]
[1746669602455,0.004,97949.0,97940.0,0.20420634]
[1746669602657,0.0102097,97946.0,97942.0,0.20420127]
[1746669602870,0.0324,97945.0,97944.0,0.20419808]
[1746669603084,0.004,97949.0,97948.0,0.20418997]
[1746669603520,0.004,97949.0,97948.0,0.21585077]
[1746669603727,0.00404491,97949.0,97948.0,0.21585077]
[1746669604765,0.00404491,97949.0,97948.0,0.57039162]
[1746669605002,0.00200001,97949.0,97948.0,0.71039564]
[1746669605475,0.00200001,97949.0,97948.0,1.21039564]
[1746669606136,1e-08,97949.0,97948.0,1.63869564]
[1746669606291,0.0153,97997.0,97988.0,0.20410662]
[1746669606493,0.0151,98008.0,97988.0,0.54410662]
[1746669606694,0.00444937,97989.0,97988.0,0.54410662]
[1746669607151,0.00444937,97989.0,97988.0,0.55864747]
[1746669607392,0.00444937,97989.0,97988.0,0.54410662]
[1746669607986,0.01244937,97989.0,97988.0,0.54410662]
[1746669608204,0.01244937,97989.0,97988.0,0.55864747]
[1746669608373,0.01244937,97989.0,97988.0,0.57083343]
[1746669608581,0.01244937,97989.0,97988.0,1.05629258]
[1746669608745,0.01244937,97989.0,97988.0,1.17262755]
[1746669608944,0.00744937,97989.0,97988.0,1.18922755]
[1746669609146,0.00744937,97989.0,97988.0,1.62392755]
[1746669609381,0.00844937,97989.0,97988.0,1.62392755]
[1746669609569,0.004,98009.0,98008.0,0.20406497]
[1746669609805,0.0041347,98009.0,98008.0,0.55860582]
[1746669610188,0.0041347,98009.0,98008.0,1.07869994]
[1746669610565,0.0041347,98009.0,98008.0,0.96236497]
[1746669610732,0.0041347,98009.0,98008.0,0.62236497]
[1746669611696,0.0041347,98009.0,98008.0,0.97790582]
[1746669612836,0.0041347,98009.0,98008.0,0.97990582]
[1746669613060,0.004,98029.0,98028.0,0.20402334]
[1746669614229,0.005,98029.0,98028.0,0.54402334]
[1746669614454,0.005,98029.0,98028.0,0.66035831]
[1746669614685,0.005,98029.0,98028.0,0.68627275]
[1746669614686,0.008,98029.0,98028.0,0.68627275]
[1746669614922,0.008,98029.0,98028.0,0.74377004]
[1746669615151,0.008,98029.0,98028.0,1.16207004]
[1746669615392,0.005,98029.0,98028.0,1.07865831]
[1746669615620,0.004,98049.0,98048.0,0.20398172]
[1746669615835,0.004,98049.0,98048.0,0.97682257]
[1746669616048,0.00413465,98049.0,98048.0,0.97682257]
[1746669616865,0.00413465,98049.0,98048.0,0.96228172]
[1746669617161,0.00413465,98049.0,98048.0,0.96628172]
[1746669617574,0.00413465,98049.0,98048.0,0.96828172]
[1746669618018,0.00413465,98049.0,98048.0,0.7643]
[1746669618332,0.00404366,98049.0,98048.0,0.7643]
[1746669618547,0.00404366,98049.0,98048.0,0.79063485]
[1746669618973,0.00404366,98049.0,98048.0,0.88642897]
[1746669619175,0.00404366,98049.0,98048.0,0.89642897]
[1746669619409,0.00404366,98049.0,98048.0,0.93062897]
[1746669619586,0.00404366,98049.0,98048.0,1.43062897]
[1746669619789,0.004,98089.0,98065.0,0.34]
[1746669619987,0.004,98089.0,98068.0,0.20394012]
[1746669620577,0.01019513,98086.0,98068.0,0.20394012]
[1746669620792,0.004,98089.0,98068.0,1.07963424]
[1746669620991,0.004,98089.0,98068.0,1.06403424]
[1746669621297,0.004,98089.0,98068.0,1.56403424]
[1746669621486,0.004,98089.0,98068.0,1.57170465]
[1746669621889,0.004,98089.0,98068.0,1.5862455]
[1746669622597,0.01019607,98077.0,98068.0,1.2583]
[1746669622806,0.01019669,98071.0,98068.0,0.84]
[1746669623024,0.2039309,98073.0,98068.0,0.5]
[1746669623198,0.20393615,98070.0,98068.0,0.5]
[1746669623428,0.01019669,98071.0,98068.0,0.5]
[1746669623631,0.01019638,98074.0,98068.0,0.5]
[1746669623762,0.20392435,98076.0,98066.0,0.21413985]
[1746669623990,0.01019596,98078.0,98066.0,0.21413985]
[1746669624354,0.01019575,98080.0,98066.0,0.21413985]
[1746669624509,0.01019586,98079.0,98066.0,0.21413985]
[1746669624709,0.01019648,98073.0,98066.0,0.34]
[1746669624887,0.2181362,98069.0,98066.0,0.34]
[1746669625082,0.0141969,98069.0,98066.0,0.34]
[1746669625278,0.21813564,98069.0,98066.0,0.34]
[1746669625542,0.01019804,98058.0,98056.0,0.34]
[1746669625775,0.01019794,98059.0,98054.0,0.2512604]
[1746669625940,0.0165,98056.0,98054.0,0.04729253]
[1746669626137,0.21916716,98055.0,98054.0,0.04729253]
[1746669626340,0.19346591,98055.0,98054.0,0.04729253]
[1746669627882,0.19346591,98055.0,98045.0,0.01019939]
[1746669627883,0.01019867,98052.0,98045.0,0.01019939]
[1746669628123,0.01019856,98053.0,98048.0,0.34]
[1746669628330,0.01019846,98054.0,98050.0,0.34]
[1746669629116,0.01019856,98053.0,98050.0,0.34]
[1746669629473,0.0305,98055.0,98050.0,0.34]
[1746669629644,0.04069835,98055.0,98051.0,0.20397548]
[1746669629848,0.2039734,98052.0,98050.0,0.34]
[1746669630065,0.04069835,98055.0,98049.0,0.20397964]
[1746669630392,0.04069835,98055.0,98045.0,0.21418654]
[1746669630393,0.20398588,98046.0,98045.0,0.001]
[1746669630587,0.01019939,98045.0,98040.0,0.34]
[1746669630791,0.01019929,98046.0,98040.0,0.34]
[1746669631079,0.0101995,98044.0,98042.0,0.34]
[1746669631833,0.01019929,98046.0,98042.0,0.34]
[1746669632036,0.01019939,98045.0,98042.0,0.34]
[1746669632236,0.0101996,98043.0,98042.0,0.001]
[1746669632742,0.01019929,98046.0,98042.0,0.341]
[1746669632972,0.01019908,98048.0,98043.0,0.20399212]
[1746669633164,0.0158,98060.0,98050.0,0.20397588]
[1746669633165,0.01019825,98056.0,98050.0,0.20397588]
[1746669633385,0.21416204,98057.0,98052.0,0.20397281]
[1746669633609,0.01019846,98054.0,98050.0,0.4243838]
[1746669634003,0.01019835,98055.0,98050.0,0.4243838]
[1746669634403,0.01019835,98055.0,98050.0,0.43458267]
[1746669634606,0.0158,98060.0,98054.0,0.20396924]
[1746669634832,0.01019804,98058.0,98054.0,0.20396924]
[1746669635152,0.01019752,98063.0,98054.0,0.01019846]
[1746669635353,0.002,98055.0,98054.0,0.01019846]
[1746669635665,0.003,98055.0,98054.0,0.01019846]
[1746669636072,0.002,98055.0,98054.0,0.01019846]
[1746669636474,0.003,98063.0,98060.0,0.20395603]
[1746669637582,0.01019794,98059.0,98054.0,5.07247171]
[1746669637826,0.20396716,98055.0,98054.0,5.07247171]
[1746669638031,0.23646716,98055.0,98054.0,5.07247171]
[1746669639036,0.23546716,98055.0,98054.0,5.07247171]
[1746669639256,0.23546716,98055.0,98054.0,5.07347171]
[1746669639623,0.25451812,98055.0,98054.0,5.07347171]
[1746669640092,0.26404352,98055.0,98054.0,5.07347171]
[1746669640577,0.26404352,98055.0,98054.0,5.07447171]
[1746669640795,0.26404352,98055.0,98054.0,5.07347171]
[1746669641022,0.26404352,98055.0,98054.0,5.07447171]
[1746669641254,0.26404352,98055.0,98054.0,5.07347171]
[1746669641473,0.26604352,98055.0,98054.0,5.07347171]
[1746669641695,0.22502599,98055.0,98054.0,5.07247171]
[1746669641926,0.23217803,98055.0,98054.0,5.07247171]
[1746669642147,0.23317803,98055.0,98054.0,5.07247171]
[1746669642371,0.23317803,98055.0,98054.0,5.07413971]
[1746669643139,0.23117803,98055.0,98054.0,5.07413971]
[1746669643298,0.23317803,98055.0,98054.0,5.07413971]
[1746669644316,0.18304361,98055.0,98054.0,5.07413971]
[1746669646847,0.16654361,98055.0,98054.0,5.07413971]
[1746669648895,0.14749265,98055.0,98054.0,5.07413971]
[1746669649928,0.0125254,98055.0,98054.0,5.07413971]
[1746669650252,0.21649256,98055.0,98054.0,5.07413971]
[1746669650473,0.0125254,98055.0,98054.0,5.07413971]
[1746669652230,0.03162904,98055.0,98054.0,5.07413971]
[1746669652783,0.0125254,98055.0,98054.0,5.07413971]
[1746669655305,0.03163085,98055.0,98054.0,5.07413971]
[1746669655707,0.04733085,98055.0,98054.0,5.07413971]
[1746669656238,0.04733085,98055.0,98054.0,5.13495725]
[1746669657015,0.20116462,98056.0,98054.0,5.13495725]
[1746669658225,0.20316462,98056.0,98054.0,5.13495725]
[1746669659332,0.16314658,98056.0,98054.0,5.13495725]
[1746669660827,0.16314658,98056.0,98054.0,5.07413971]
[1746669665518,0.003,98056.0,98054.0,5.27810726]
[1746669666363,0.003,98056.0,98054.0,5.07413971]
[1746669666587,0.003,98056.0,98054.0,5.27810762]
[1746669667233,0.001,98056.0,98055.0,0.0157]
[1746669667445,0.001,98056.0,98055.0,0.80374085]
[1746669667646,0.01019565,98081.0,98067.0,0.2197422]
[1746669667856,0.01019617,98076.0,98067.0,0.2197422]
[1746669668076,0.21411983,98076.0,98067.0,0.2197422]
[1746669668278,0.01019617,98076.0,98067.0,0.2197422]
[1746669668496,0.01019638,98074.0,98067.0,0.2039422]
[1746669669128,0.20394636,98065.0,98064.0,0.34]
[1746669669334,0.20394428,98066.0,98064.0,0.34]
[1746669670179,0.21414149,98066.0,98062.0,0.35019763]
[1746669670409,0.001,98065.0,98062.0,0.35019763]
[1746669670814,0.01019721,98066.0,98062.0,0.34]
[1746669670815,0.21414198,98066.0,98062.0,0.34]
[1746669671030,0.20394844,98064.0,98062.0,0.34]
[1746669671203,0.01019731,98065.0,98062.0,0.34]
[1746669671450,0.01019731,98065.0,98062.0,0.35173589]
[1746669672792,0.20394844,98064.0,98062.0,0.35173589]
[1746669673018,0.01019731,98065.0,98062.0,0.35173589]
[1746669673473,0.01019731,98065.0,98062.0,0.01173589]
[1746669673901,0.01019742,98064.0,98060.0,0.35019783]
[1746669674301,0.01019742,98064.0,98060.0,0.34]
[1746669674302,0.20395468,98061.0,98060.0,0.34]
[1746669674437,0.21415241,98061.0,98060.0,0.01135982]
[1746669674640,0.01019794,98059.0,98056.0,0.34]
[1746669675045,0.01019773,98061.0,98056.0,0.34]
[1746669675363,0.01019783,98060.0,98056.0,0.35019825]
[1746669675694,0.01019794,98059.0,98056.0,0.01019825]
[1746669675895,0.01019794,98059.0,98055.0,0.40095753]
[1746669675896,0.20396508,98056.0,98055.0,0.40095753]
[1746669676068,0.20396508,98056.0,98055.0,0.41239603]
[1746669676553,0.23516508,98056.0,98055.0,0.40095753]
[1746669676751,0.23516508,98056.0,98055.0,0.34]
[1746669676971,0.23516508,98056.0,98054.0,5.08584204]
[1746669677151,0.0155,98055.0,98054.0,5.42584204]
[1746669677824,0.0155,98055.0,98054.0,5.07413971]
[1746669678243,0.0148,98055.0,98054.0,5.07413971]
[1746669679563,0.0148,98055.0,98054.0,5.07513971]
[1746669679924,0.0148,98055.0,98054.0,5.07413971]
[1746669680067,0.001,98055.0,98054.0,5.07413971]
[1746669688636,0.001,98055.0,98054.0,5.41413971]
[1746669691387,0.001,98055.0,98054.0,5.42943971]
[1746669692171,0.01019763,98062.0,98058.0,0.01019804]
[1746669693203,0.01119763,98062.0,98058.0,0.01019804]
[1746669694022,0.01219763,98062.0,98058.0,0.01019804]
[1746669694226,0.002,98062.0,98059.0,0.36519794]
[1746669694373,0.002,98062.0,98061.0,0.355]
[1746669694576,0.002,98062.0,98061.0,0.3701]
[1746669694948,0.002,98062.0,98061.0,0.3696]
[1746669695240,0.004,98069.0,98066.0,0.01019721]
[1746669695438,0.004,98069.0,98068.0,0.015]
[1746669696736,0.006,98069.0,98068.0,0.015]
[1746669697767,0.40771291,98110.0,98068.0,0.355]
[1746669697934,1.01907739,98128.0,98084.0,0.01019534]
[1746669697935,0.01019492,98088.0,98084.0,0.01019534]
[1746669698136,0.01464375,98089.0,98085.0,0.20390477]
[1746669698552,0.01019523,98085.0,98081.0,0.01019565]
[1746669698761,0.01019565,98081.0,98076.0,0.35019617]
[1746669698981,0.20391932,98078.0,98076.0,0.34]
[1746669699183,0.21891932,98078.0,98076.0,0.35134548]
[1746669699722,0.015,98077.0,98076.0,0.35134548]
[1746669699855,0.015,98077.0,98076.0,0.01134548]
[1746669700064,0.02519607,98077.0,98070.0,0.21413179]
[1746669700256,0.02519607,98077.0,98071.0,0.34]
[1746669700456,0.01019617,98076.0,98071.0,0.35019669]
[1746669700673,0.01019617,98076.0,98071.0,0.34]
[1746669700881,0.01019638,98074.0,98071.0,0.34]
[1746669701244,0.02589627,98075.0,98071.0,0.34]
[1746669701471,0.2141262,98073.0,98070.0,0.01106479]
[1746669701618,0.2039318,98072.0,98070.0,0.01106479]
[1746669701819,0.0101969,98069.0,98066.0,0.34]
[1746669702026,0.0156,98070.0,98067.0,0.2039422]
[1746669702236,0.0156,98070.0,98068.0,0.34]
[1746669702397,0.0156,98070.0,98068.0,0.341]
[1746669702597,0.003,98069.0,98068.0,0.341]
[1746669702997,0.0191,98069.0,98068.0,0.01998653]
[1746669703203,0.035,98069.0,98068.0,0.01998653]
[1746669703450,0.035,98069.0,98068.0,0.001]
[1746669703646,0.0191,98069.0,98068.0,0.001]
[1746669703883,0.0161,98069.0,98068.0,0.04883639]
[1746669704219,0.0318,98069.0,98068.0,0.04883639]
[1746669704417,0.0318,98069.0,98068.0,0.04783639]
[1746669704820,0.0318,98069.0,98068.0,0.04883639]
[1746669705280,0.0318,98069.0,98068.0,0.04983639]
[1746669706365,0.13359412,98069.0,98068.0,0.002]
[1746669707050,0.23514012,98068.0,98066.0,0.04783639]
[1746669707258,0.13349412,98067.0,98066.0,0.04783639]
[1746669708615,0.20394428,98066.0,98064.0,0.04783639]
[1746669708806,0.0309,98065.0,98064.0,0.04783639]
[1746669710322,0.0154,98065.0,98064.0,0.04883639]
[1746669711493,0.0154,98065.0,98064.0,0.06784478]
[1746669712063,0.0154,98065.0,98064.0,0.02000839]
[1746669713525,0.01454346,98065.0,98064.0,0.02000839]
[1746669714443,0.02964346,98065.0,98064.0,0.02000839]
[1746669719054,0.21415839,98059.0,98054.0,5.2781086]
[1746669719283,0.01019794,98059.0,98055.0,0.21416369]
[1746669719933,0.01019804,98058.0,98054.0,5.2781086]
[1746669720139,0.01019794,98059.0,98054.0,5.28830706]
[1746669720316,0.01019794,98059.0,98055.0,0.01019835]
[1746669720751,0.01019794,98059.0,98055.0,0.02176175]
[1746669720992,0.01019794,98059.0,98055.0,0.01019835]
[1746669721229,0.01019794,98059.0,98055.0,0.21416365]
[1746669721998,0.01019783,98060.0,98056.0,0.21416135]
[1746669722212,0.01019783,98060.0,98056.0,0.2039631]
[1746669723091,0.0165,98069.0,98068.0,4.51763833]
[1746669723522,0.01656405,98069.0,98068.0,4.51763833]
[1746669724702,6.405e-05,98069.0,98068.0,4.51763833]
[1746669725729,0.20400209,98069.0,98068.0,4.51763833]
[1746669728628,0.20400209,98069.0,98068.0,4.51930633]
[1746669731309,0.20400209,98069.0,98068.0,4.53836912]
[1746669733828,0.23710209,98069.0,98068.0,4.53836912]
[1746669734046,0.33889621,98069.0,98068.0,4.53836912]
[1746669734422,0.33889621,98069.0,98068.0,4.53838783]
[1746669734625,0.33889621,98069.0,98068.0,4.51930633]
[1746669735040,0.35012274,98069.0,98068.0,4.51930633]
[1746669735990,0.35112274,98069.0,98068.0,4.51930633]
[1746669736363,0.35012274,98069.0,98068.0,4.51930633]
[1746669736746,0.35412274,98069.0,98068.0,4.51930633]
[1746669739313,0.27802324,98069.0,98068.0,4.51930633]
[1746669741942,0.28102324,98069.0,98068.0,4.51930633]
[1746669742753,0.62102324,98069.0,98068.0,4.51930633]
[1746669744003,1.32216409,98069.0,98068.0,4.51930633]
[1746669744353,1.32316409,98069.0,98068.0,4.51930633]
[1746669744820,1.69068409,98069.0,98068.0,4.51930633]
[1746669745021,1.69568409,98069.0,98068.0,4.51930633]
[1746669745221,1.73568409,98069.0,98068.0,4.51930633]
[1746669745462,1.74268409,98069.0,98068.0,4.51930633]
[1746669745635,1.74968409,98069.0,98068.0,4.50470633]
[1746669746993,1.74968409,98069.0,98068.0,4.48810633]
[1746669747166,1.74968409,98069.0,98068.0,4.44030633]
[1746669747728,1.74968409,98069.0,98068.0,4.38927144]
[1746669748028,1.74668409,98069.0,98068.0,4.38827144]
[1746669748450,1.75668409,98069.0,98068.0,4.38927144]
[1746669748832,1.76568409,98069.0,98068.0,4.39027144]
[1746669749461,1.67454324,98069.0,98068.0,4.39027144]
[1746669749662,1.65804324,98069.0,98068.0,4.39027144]
[1746669750327,0.62844324,98069.0,98068.0,4.39027144]
[1746669750531,0.61721671,98069.0,98068.0,4.39027144]
[1746669750734,0.95721671,98069.0,98068.0,4.40557144]
[1746669750941,0.61721671,98069.0,98068.0,4.40557144]
[1746669751177,0.95721671,98069.0,98068.0,4.40557144]
[1746669751389,0.94721671,98069.0,98068.0,4.40457144]
[1746669751532,0.94321671,98069.0,98068.0,4.40457144]
[1746669751728,0.60321671,98069.0,98068.0,4.40457144]
[1746669751935,0.59821671,98069.0,98068.0,4.42077144]
[1746669752140,0.59821671,98069.0,98068.0,4.41977144]
[1746669752347,0.59821671,98069.0,98068.0,4.42077144]
[1746669753908,0.60021671,98069.0,98068.0,4.42077144]
[1746669754318,0.23269671,98069.0,98068.0,4.42077144]
[1746669759168,0.23269671,98069.0,98068.0,4.40457144]
[1746669759378,0.23269671,98069.0,98068.0,4.38927144]
[1746669762620,0.23269671,98069.0,98068.0,4.40467144]
[1746669766075,0.23269671,98069.0,98068.0,4.42037144]
[1746669771398,0.23269671,98069.0,98068.0,4.40467144]
[1746669772417,0.23269671,98069.0,98068.0,4.38927144]
[1746669780648,0.23269671,98069.0,98068.0,4.40437144]
[1746669782702,0.23269671,98069.0,98068.0,4.41987144]
[1746669786260,0.23269671,98069.0,98068.0,4.19953568]
[1746669787259,0.23269671,98069.0,98068.0,4.21858372]
[1746669787946,0.23269671,98069.0,98068.0,4.19953568]
[1746669789624,0.23269671,98069.0,98068.0,4.16893568]
[1746669797272,0.57269671,98069.0,98068.0,4.16893568]
[1746669798494,0.57169671,98069.0,98068.0,4.16893568]
[1746669802279,0.58623756,98069.0,98068.0,4.16893568]
[1746669806231,0.57169671,98069.0,98068.0,4.16893568]
[1746669808524,0.57169671,98069.0,98068.0,4.18513568]
[1746669810837,0.57169671,98069.0,98068.0,4.16893568]
[1746669812270,0.61183756,98069.0,98068.0,4.16793568]
[1746669812472,1.41095785,98069.0,98068.0,4.16793568]
[1746669812788,1.30543756,98069.0,98068.0,4.16793568]
[1746669812992,1.30143756,98069.0,98068.0,4.16793568]
[1746669813719,1.30443756,98069.0,98068.0,4.16793568]
[1746669813926,1.30143756,98069.0,98068.0,4.16793568]
[1746669814138,1.30143756,98069.0,98068.0,4.02405417]
[1746669814139,1.51695785,98069.0,98068.0,4.02405417]
[1746669814337,1.41743756,98069.0,98068.0,3.17044413]
[1746669814538,1.42243756,98069.0,98068.0,3.17044413]
[1746669814690,1.42243756,98069.0,98068.0,3.15891414]
[1746669814900,1.41743756,98069.0,98068.0,3.00379412]
[1746669815111,1.41143756,98069.0,98068.0,2.90375226]
[1746669815283,1.43343756,98069.0,98068.0,2.86275226]
[1746669815494,1.43343756,98069.0,98068.0,2.8117104]
[1746669815689,1.43343756,98069.0,98068.0,2.76066854]
[1746669816060,1.43343756,98069.0,98068.0,2.73695763]
[1746669816254,1.43343756,98069.0,98068.0,2.68591577]
[1746669817601,1.43343756,98069.0,98068.0,2.66059577]
[1746669818377,1.43343756,98069.0,98068.0,1.91342133]
[1746669818589,1.43443756,98069.0,98068.0,1.5053117]
[1746669818743,1.43443756,98069.0,98068.0,1.45426984]
[1746669819102,1.43443756,98069.0,98068.0,1.34891612]
[1746669819334,1.43443756,98069.0,98068.0,1.28260426]
[1746669819551,1.43443756,98069.0,98068.0,1.2315624]
[1746669819755,1.43443756,98069.0,98068.0,1.12945412]
[1746669819959,1.43443756,98069.0,98068.0,1.0783877]
[1746669820114,1.43443756,98069.0,98068.0,0.95103128]
[1746669820316,1.43443756,98069.0,98068.0,0.89996486]
[1746669820520,1.43443756,98069.0,98068.0,0.84889844]
[1746669820728,1.43443756,98069.0,98068.0,0.7467656]
[1746669820927,1.43443756,98069.0,98068.0,0.69569918]
[1746669821142,1.43443756,98069.0,98068.0,0.64463276]
[1746669821358,1.43443756,98069.0,98068.0,0.54249992]
[1746669821549,1.43443756,98069.0,98068.0,0.51692992]
[1746669821758,1.43443756,98069.0,98068.0,0.41479708]
[1746669821961,1.43443756,98069.0,98068.0,0.34326066]
[1746669822373,1.43443756,98069.0,98068.0,0.29219424]
[1746669822796,1.33443756,98069.0,98068.0,0.29219424]
[1746669822991,1.42273756,98069.0,98068.0,0.29219424]
[1746669823686,1.41273756,98069.0,98068.0,0.29219424]
[1746669824071,1.42273756,98069.0,98068.0,0.29219424]